bitfinex/quotes_SOLUSD_20250902
["timestamp","ask_amount","ask_price","bid_price","bid_amount"]
[1756825059759,43.69983105,204.48,204.45,0.14216157]
[1756825059955,40.06,204.48,204.45,0.14216157]
[1756825060154,4.33936805,204.47,204.43,0.14216157]
[1756825060348,0.7,204.47,204.43,0.14216157]
[1756825060576,0.7,204.46,204.43,0.14216157]
[1756825060761,0.7,204.46,204.43,5.03361637]
[1756825060961,0.7,204.48,204.43,5.03361637]
[1756825061175,8.06563947,204.49,204.43,5.03361637]
[1756825061176,40.06,204.46,204.44,8.06563947]
[1756825061483,40.06,204.46,204.45,0.14216157]
[1756825062591,40.06,204.46,204.43,12.95719925]
[1756825062592,40.76,204.46,204.43,12.95719925]
[1756825062875,8.06563947,204.49,204.44,13.09919628]
[1756825063073,4.34379984,204.48,204.44,13.09919628]
[1756825063273,0.06,204.52,204.48,13.73775558]
[1756825063481,3.64555154,204.51,204.48,13.59559401]
[1756825063783,0.06,204.52,204.49,0.14216157]
[1756825064082,0.06,204.52,204.51,14.02207872]
[1756825064862,0.06,204.52,204.51,26.97745463]
[1756825065070,0.06,204.52,204.51,0.14216157]
[1756825065399,0.76,204.52,204.51,0.14216157]
[1756825065569,0.06,204.52,204.51,0.14216157]
[1756825065770,0.06,204.49,204.48,5.0326154]
[1756825065970,0.06,204.49,204.48,26.97817202]
[1756825066274,0.06,204.49,204.48,61.70381149]
[1756825066490,0.06,204.51,204.49,14.02207872]
[1756825066669,0.06,204.51,204.5,21.80339505]
[1756825066869,0.06,204.51,204.5,27.3533706]
[1756825067071,0.06,204.51,204.5,19.28773113]
[1756825067397,0.06,204.51,204.5,27.3533706]
[1756825067905,0.06,204.51,204.5,27.63769374]
[1756825068076,0.06,204.53,204.51,48.08771819]
[1756825068276,0.06,204.53,204.52,22.08771819]
[1756825068603,0.06,204.53,204.52,22.74771819]
[1756825068910,0.06,204.53,204.52,26.97721554]
[1756825069089,0.06,204.53,204.52,27.63721554]
[1756825069810,0.06,204.53,204.52,26.97721554]
[1756825070282,0.06,204.53,204.52,27.63721554]
[1756825070481,0.06,204.53,204.52,26.97721554]
[1756825071112,0.06,204.53,204.52,27.63721554]
[1756825071880,0.06,204.54,204.53,14.02207872]
[1756825072210,0.06,204.54,204.53,22.74771819]
[1756825072416,0.06,204.54,204.53,22.08771819]
[1756825072616,0.06,204.54,204.53,22.74771819]
[1756825073121,0.06,204.54,204.53,27.63697648]
[1756825073617,0.06,204.54,204.53,26.97697648]
[1756825073786,0.06,204.54,204.53,27.63697648]
[1756825075280,0.7,204.61,204.54,0.28432314]
[1756825075501,20.0,204.77,204.54,0.28432314]
[1756825075502,0.7,204.65,204.6,0.14216157]
[1756825075787,0.7,204.64,204.6,0.28432314]
[1756825076082,8.06563947,204.68,204.61,0.14216157]
[1756825076307,8.06563947,204.66,204.61,0.14216157]
[1756825076511,8.06563947,204.66,204.61,8.20780104]
[1756825076512,0.7,204.66,204.61,8.20780104]
[1756825076720,8.76563947,204.65,204.61,0.14216157]
[1756825077087,0.7,204.64,204.61,0.14216157]
[1756825077305,0.7,204.63,204.61,0.14216157]
[1756825077500,0.7,204.63,204.61,5.02943674]
[1756825077792,0.7,204.63,204.61,0.14216157]
[1756825078305,0.7,204.62,204.61,0.14216157]
[1756825078520,8.76563947,204.62,204.59,0.14216157]
[1756825078713,37.22611343,204.67,204.59,0.14216157]
[1756825078892,8.76563947,204.61,204.59,0.14216157]
[1756825079323,0.7,204.6,204.59,0.14216157]
[1756825079914,8.76563947,204.6,204.55,4.88859389]
[1756825080232,8.06563947,204.56,204.47,4.89069064]
[1756825080399,0.7,204.55,204.45,0.66]
[1756825080602,8.06563947,204.52,204.46,8.06563947]
[1756825080818,0.7,204.54,204.46,8.06563947]
[1756825081016,0.7,204.54,204.46,30.89093221]
[1756825081225,0.7,204.58,204.51,8.06563947]
[1756825081427,8.06563947,204.56,204.51,8.06563947]
[1756825081607,8.76563947,204.56,204.52,0.14216157]
[1756825082007,8.06563947,204.54,204.52,0.14216157]
[1756825082412,8.76563947,204.53,204.48,13.59559401]
[1756825082609,8.76563947,204.52,204.49,0.14216157]
[1756825082814,8.06563947,204.53,204.49,0.14216157]
[1756825083023,8.06563947,204.53,204.49,0.42648471]
[1756825083328,0.7,204.53,204.51,0.14216157]
[1756825083617,0.7,204.56,204.53,0.14216157]
[1756825083831,8.76563947,204.55,204.52,0.14216157]
[1756825084207,0.7,204.54,204.52,0.14216157]
[1756825084911,40.02,204.57,204.52,0.14216157]
[1756825085113,8.06563947,204.53,204.51,0.03]
[1756825085319,0.7,204.56,204.51,0.03]
[1756825085320,8.06563947,204.52,204.51,0.03]
[1756825085533,8.06563947,204.52,204.48,0.03]
[1756825085739,42.13127894,204.49,204.36,0.03]
[1756825086045,8.06563947,204.39,204.36,4.9233255]
[1756825086208,8.06563947,204.39,204.37,0.14216157]
[1756825086417,0.7,204.42,204.37,21.66123348]
[1756825086732,48.10563947,204.44,204.4,0.14216157]
[1756825086925,48.80563947,204.44,204.4,0.14216157]
[1756825087328,8.76563947,204.44,204.4,4.89222154]
[1756825087531,0.7,204.44,204.41,0.14216157]
[1756825087851,8.76563947,204.44,204.41,0.14216157]
[1756825088054,8.76563947,204.43,204.41,0.14216157]
[1756825088258,8.06563947,204.43,204.41,0.14216157]
[1756825088428,0.7,204.45,204.41,0.14216157]
[1756825088630,26.0,204.5,204.41,0.14216157]
[1756825088631,8.06563947,204.44,204.41,0.14216157]
[1756825088955,8.76563947,204.44,204.41,0.14216157]
[1756825089121,8.06563947,204.45,204.43,0.14216157]
[1756825089322,8.76563947,204.45,204.43,0.14216157]
[1756825089528,8.76563947,204.44,204.43,0.14216157]
[1756825089946,8.06563947,204.45,204.43,0.14216157]
[1756825090156,8.06563947,204.46,204.43,0.14216157]
[1756825090325,0.7,204.48,204.43,0.14216157]
[1756825090648,8.06563947,204.44,204.43,0.14216157]
[1756825091031,8.06563947,204.44,204.38,114.16563947]
[1756825091233,8.06563947,204.43,204.39,5.03476884]
[1756825091533,0.7,204.44,204.39,13.10040831]
[1756825091742,8.76563947,204.44,204.39,18.63036285]
[1756825092249,0.7,204.43,204.39,18.63036285]
[1756825092548,0.7,204.46,204.39,18.63036285]
[1756825092747,8.06563947,204.45,204.4,13.87991715]
[1756825092939,8.76563947,204.45,204.4,13.87991715]
[1756825093133,40.04,204.46,204.42,0.14216157]
[1756825093134,8.76563947,204.44,204.42,0.14216157]
[1756825093339,8.06563947,204.43,204.42,0.14216157]
[1756825093951,8.76563947,204.43,204.38,110.99264091]
[1756825094144,40.04,204.46,204.38,119.05828038]
[1756825094351,8.06563947,204.42,204.39,0.14216157]
[1756825094653,0.7,204.43,204.39,0.14216157]
[1756825094830,0.7,204.42,204.39,0.14216157]
[1756825095035,0.7,204.42,204.39,5.03475878]
[1756825095252,8.06563947,204.4,204.36,0.03]
[1756825095455,0.7,204.41,204.36,0.03]
[1756825095456,8.06563947,204.38,204.36,0.03]
[1756825096061,40.04,204.43,204.38,0.14216157]
[1756825096245,40.04,204.43,204.39,8.06563947]
[1756825096647,8.76563947,204.46,204.42,0.14216157]
[1756825096832,40.04,204.45,204.42,0.14216157]
[1756825097253,40.04,204.45,204.44,0.14216157]
[1756825097661,40.04,204.46,204.44,8.20780104]
[1756825097842,8.06563947,204.54,204.46,0.14216157]
[1756825098042,40.74,204.53,204.49,0.14216157]
[1756825098247,40.04,204.52,204.5,0.14216157]
[1756825098450,40.74,204.53,204.5,0.14216157]
[1756825098640,0.7,204.52,204.5,0.14216157]
[1756825098837,8.06563947,204.52,204.5,0.14216157]
[1756825099256,0.7,204.52,204.5,5.03211661]
[1756825099449,0.7,204.51,204.5,5.03211661]
[1756825099655,48.10563947,204.53,204.5,5.03211661]
[1756825099860,0.7,204.58,204.5,5.75211661]
[1756825100064,48.80563947,204.57,204.53,0.14216157]
[1756825100244,0.7,204.56,204.53,0.14216157]
[1756825101151,0.76,204.6,204.55,0.14216157]
[1756825101354,40.74,204.59,204.55,8.20780104]
[1756825101560,0.7,204.58,204.55,0.14216157]
[1756825101867,40.04,204.58,204.55,13.73775558]
[1756825102358,40.04,204.59,204.55,13.73775558]
[1756825102746,40.1,204.6,204.58,0.14216157]
[1756825103175,40.1,204.6,204.58,5.03004519]
[1756825103878,40.1,204.6,204.59,13.87991715]
[1756825103879,0.06,204.6,204.59,13.87991715]
[1756825104180,0.06,204.6,204.59,22.08771819]
[1756825104337,0.06,204.6,204.59,14.02207872]
[1756825104962,0.06,204.6,204.59,0.14216157]
[1756825105142,0.06,204.6,204.59,5.02998599]
[1756825105343,0.06,204.6,204.59,5.31430913]
[1756825105544,0.06,204.6,204.59,26.97554261]
[1756825105740,0.06,204.6,204.59,18.90990314]
[1756825106651,0.06,204.6,204.59,27.69554261]
[1756825107462,0.06,204.6,204.59,31.75403864]
[1756825108970,0.06,204.62,204.59,111.85403864]
[1756825109169,0.06,204.63,204.62,39.59559401]
[1756825109359,0.06,204.63,204.62,56.74899888]
[1756825109558,0.06,204.63,204.62,57.75332202]
[1756825109761,1e-08,204.63,204.62,57.75332202]
[1756825109972,0.06,204.64,204.63,14.02207872]
[1756825109973,1e-08,204.64,204.63,14.02207872]
[1756825110275,1e-08,204.64,204.63,26.86621422]
[1756825110651,40.02,204.7,204.68,0.42648471]
[1756825110851,40.02,204.7,204.69,25.71972951]
[1756825111056,40.02,204.7,204.69,13.59559401]
[1756825111374,40.72,204.75,204.72,0.14216157]
[1756825111575,40.02,204.75,204.74,0.14216157]
[1756825111875,40.72,204.75,204.74,0.14216157]
[1756825112055,0.7,204.75,204.74,0.14216157]
[1756825113075,0.7,204.79,204.74,12.26629707]
[1756825113279,40.0,204.78,204.76,4.88374737]
[1756825113493,40.7,204.78,204.77,0.14216157]
[1756825114557,40.7,204.78,204.77,13.73775558]
[1756825114764,40.0,204.78,204.77,13.73775558]
[1756825115691,40.0,204.82,204.77,56.74541894]
[1756825115858,40.7,204.81,204.8,0.14216157]
[1756825119475,12.1241355,204.83,204.79,13.73775558]
[1756825119684,0.67,204.85,204.8,0.28432314]
[1756825119874,0.67,204.84,204.81,0.14216157]
[1756825120077,12.1241355,204.82,204.77,26.0]
[1756825120277,0.67,204.83,204.77,26.0]
[1756825120278,39.98,204.81,204.78,13.73775558]
[1756825120662,52.1041355,204.81,204.78,13.73775558]
[1756825120858,30.88161823,204.9,204.78,25.86189108]
[1756825120859,39.98,204.82,204.78,25.86189108]
[1756825121062,40.65,204.82,204.78,25.86189108]
[1756825121465,40.65,204.82,204.8,0.14216157]
[1756825121675,39.98,204.82,204.8,0.14216157]
[1756825121873,40.65,204.82,204.8,0.14216157]
[1756825122285,39.98,204.82,204.8,0.14216157]
[1756825122479,12.1241355,204.84,204.8,0.14216157]
[1756825122480,13.80011254,204.9,204.82,0.14216157]
[1756825122680,0.67,204.88,204.83,12.1241355]
[1756825122885,0.67,204.87,204.83,12.1241355]
[1756825123082,13.80011254,204.9,204.83,26.00405265]
[1756825123284,41.86011254,204.9,204.88,0.14216157]
[1756825123480,0.67,204.89,204.88,0.14216157]
[1756825124271,0.67,204.89,204.87,0.14216157]
[1756825124473,0.67,204.88,204.87,0.14216157]
[1756825124980,0.67,204.88,204.85,0.14216157]
[1756825125182,0.67,204.87,204.85,0.14216157]
[1756825125381,41.86011254,204.9,204.75,0.7]
[1756825125382,52.7741355,204.86,204.75,0.7]
[1756825125581,12.1241355,204.82,204.78,13.59559401]
[1756825125802,12.1241355,204.79,204.72,0.7]
[1756825126101,12.1241355,204.77,204.73,4.88447991]
[1756825126304,12.1241355,204.77,204.74,13.59559401]
[1756825126599,52.0841355,204.78,204.74,13.59559401]
[1756825126983,12.1241355,204.77,204.74,13.59559401]
[1756825127189,12.1241355,204.77,204.72,12.1241355]
[1756825127190,12.1241355,204.75,204.72,4.8847107]
[1756825127492,39.96,204.78,204.7,18.48079186]
[1756825127687,39.96,204.78,204.73,26.0]
[1756825127688,12.1241355,204.75,204.73,26.0]
[1756825127883,39.96,204.74,204.73,39.59559401]
[1756825128501,39.96,204.74,204.65,18.4819854]
[1756825128502,52.7541355,204.74,204.65,18.4819854]
[1756825128689,12.1241355,204.7,204.65,18.4819854]
[1756825128886,52.0841355,204.7,204.65,56.6061209]
[1756825129192,52.0841355,204.7,204.66,0.42648471]
[1756825129391,52.0841355,204.7,204.65,44.4819854]
[1756825129901,52.0841355,204.7,204.68,0.14216157]
[1756825129902,12.7941355,204.69,204.68,0.14216157]
[1756825130218,12.7941355,204.69,204.57,0.03]
[1756825130380,12.1241355,204.65,204.62,13.62559401]
[1756825130578,39.96,204.65,204.62,18.51252367]
[1756825130803,39.96,204.65,204.62,30.63665917]
[1756825130983,39.96,204.65,204.62,18.51252367]
[1756825131183,39.96,204.65,204.63,0.42648471]
[1756825131602,39.96,204.65,204.63,5.17107307]
[1756825131910,39.96,204.65,204.63,0.14216157]
[1756825132202,42.30157107,204.76,204.63,0.14216157]
[1756825132203,39.96,204.69,204.66,0.42648471]
[1756825132501,39.96,204.69,204.68,0.14216157]
[1756825132705,39.96,204.7,204.68,0.14216157]
[1756825132877,39.96,204.73,204.7,39.73775558]
[1756825133301,12.7941355,204.72,204.64,0.14216157]
[1756825133488,12.1241355,204.7,204.67,13.73775558]
[1756825133688,39.96,204.69,204.67,13.73775558]
[1756825134406,12.7941355,204.68,204.65,13.59559401]
[1756825134579,12.1241355,204.67,204.66,0.14216157]
[1756825134780,39.96,204.67,204.66,0.14216157]
[1756825135197,12.7941355,204.74,204.68,0.28432314]
[1756825135512,52.0841355,204.73,204.7,0.14216157]
[1756825135686,12.1241355,204.72,204.7,0.14216157]
[1756825135886,0.67,204.72,204.7,0.14216157]
[1756825136091,12.1241355,204.73,204.7,0.14216157]
[1756825136390,39.96,204.72,204.7,5.0272729]
[1756825136592,39.96,204.71,204.7,5.0272729]
[1756825137695,39.96,204.71,204.7,0.14216157]
[1756825137893,39.96,204.71,204.7,5.02735942]
[1756825138094,52.0841355,204.71,204.7,5.02735942]
[1756825139128,52.7541355,204.71,204.7,0.14216157]
[1756825139414,52.7541355,204.71,204.69,13.73775558]
[1756825139618,12.7941355,204.7,204.69,13.73775558]
[1756825139913,12.1241355,204.7,204.69,0.14216157]
[1756825140307,0.67,204.74,204.69,5.02759808]
[1756825140506,250.0,204.75,204.69,0.14216157]
[1756825140507,12.1241355,204.7,204.69,0.14216157]
[1756825140705,52.0841355,204.7,204.68,0.14216157]
[1756825140905,12.1241355,204.69,204.68,0.14216157]
[1756825141222,39.96,204.69,204.68,13.73775558]
[1756825141916,12.1241355,204.72,204.7,0.14216157]
[1756825142108,250.0,204.75,204.7,106.94621422]
[1756825142310,39.96,204.73,204.7,94.82207872]
[1756825142507,39.96,204.73,204.7,94.12207872]
[1756825142712,52.0841355,204.73,204.7,94.12207872]
[1756825144006,40.63,204.73,204.7,93.83775558]
[1756825144219,12.1241355,204.72,204.7,98.72285758]
[1756825144419,40.63,204.73,204.7,98.72285758]
[1756825144420,12.7941355,204.71,204.7,80.24216157]
[1756825144603,12.1241355,204.71,204.7,80.24216157]
[1756825145005,40.63,204.73,204.7,80.24216157]
[1756825145199,12.1241355,204.71,204.7,85.12735942]
[1756825145395,12.1241355,204.71,204.7,80.24216157]
[1756825145631,12.1241355,204.71,204.7,0.14216157]
[1756825145930,0.67,204.71,204.65,0.03]
[1756825146130,12.1241355,204.69,204.65,0.17216157]
[1756825146310,12.1241355,204.69,204.66,0.7]
[1756825146621,12.1241355,204.72,204.69,0.14216157]
[1756825146823,39.96,204.7,204.69,0.14216157]
[1756825147129,250.0,204.75,204.74,13.59559401]
[1756825147323,250.0,204.75,204.74,14.02207872]
[1756825147837,198.51777976,204.75,204.74,26.84621422]
[1756825148037,198.51777976,204.75,204.74,31.73045765]
[1756825149340,198.51777976,204.75,204.74,18.90632215]
[1756825149526,198.51777976,204.75,204.74,31.75045765]
[1756825150037,198.51777976,204.75,204.74,31.03045765]
[1756825150413,198.51777976,204.75,204.74,31.75045765]
[1756825151220,198.51777976,204.75,204.74,31.03045765]
[1756825151420,198.51777976,204.75,204.74,57.03045765]
[1756825151723,198.51777976,204.75,204.74,44.90632215]
[1756825151924,198.51777976,204.75,204.74,44.76416058]
[1756825152129,198.51777976,204.75,204.74,44.90632215]
[1756825152535,198.51777976,204.75,204.74,40.02207872]
[1756825153037,198.51777976,204.75,204.74,44.90632215]
[1756825153242,198.51777976,204.75,204.74,40.02207872]
[1756825153717,198.51777976,204.75,204.74,120.12207872]
[1756825153912,211.34191526,204.75,204.74,93.83775558]
[1756825154112,211.34191526,204.75,204.74,80.1]
[1756825154523,211.34191526,204.75,204.74,80.24216157]
[1756825155926,199.21777976,204.75,204.72,13.59559401]
[1756825156233,52.7641355,204.74,204.73,0.14216157]
[1756825156437,0.7,204.74,204.73,0.14216157]
[1756825156639,238.45777976,204.75,204.73,4.884482]
[1756825156841,238.45777976,204.75,204.73,5.02664357]
[1756825157145,198.51777976,204.75,204.74,14.02207872]
[1756825157354,238.45777976,204.75,204.74,14.02207872]
[1756825157826,238.45777976,204.75,204.74,0.14216157]
[1756825158425,198.51777976,204.75,204.74,31.03045765]
[1756825159240,198.51777976,204.75,204.74,18.90632215]
[1756825159443,198.51777976,204.75,204.74,31.03045765]
[1756825159649,199.27777976,204.75,204.74,0.14216157]
[1756825159824,199.27777976,204.75,204.73,30.88446692]
[1756825159825,199.27777976,204.75,204.73,0.14216157]
[1756825160014,39.94,204.74,204.67,85.70584593]
[1756825160216,12.1241355,204.73,204.68,13.59559401]
[1756825160420,39.94,204.72,204.68,13.59559401]
[1756825160615,0.7,204.73,204.69,0.28432314]
[1756825160821,198.57777976,204.75,204.73,0.14216157]
[1756825161032,39.94,204.74,204.73,0.14216157]
[1756825162538,52.7641355,204.74,204.7,80.1]
[1756825162717,0.7,204.73,204.71,13.73775558]
[1756825163045,198.57777976,204.75,204.72,0.28432314]
[1756825163242,39.94,204.74,204.72,0.28432314]
[1756825163544,39.94,204.74,204.72,0.14216157]
[1756825163946,198.57777976,204.75,204.72,0.14216157]
[1756825164137,39.94,204.74,204.73,0.14216157]
[1756825164441,198.57777976,204.75,204.74,13.73775558]
[1756825164646,238.51777976,204.75,204.74,18.62199901]
[1756825164831,239.21777976,204.75,204.74,18.62199901]
[1756825165036,251.34191526,204.75,204.71,13.59559401]
[1756825165223,251.34191526,204.75,204.71,18.48055322]
[1756825165224,52.7641355,204.74,204.71,18.48055322]
[1756825165420,52.7641355,204.74,204.72,0.14216157]
[1756825165421,0.7,204.73,204.72,0.14216157]
[1756825166930,12.8241355,204.73,204.7,80.1]
[1756825167132,39.94,204.72,204.7,84.98515849]
[1756825167470,211.40191526,204.75,204.71,13.73775558]
[1756825167633,52.7641355,204.74,204.71,13.73775558]
[1756825167956,0.7,204.73,204.71,0.14216157]
[1756825168142,52.7641355,204.72,204.71,0.14216157]
[1756825168458,198.57777976,204.75,204.72,13.59559401]
[1756825168635,198.57777976,204.75,204.73,0.28432314]
[1756825168947,198.57777976,204.75,204.74,18.62199901]
[1756825169252,238.51777976,204.75,204.74,18.62199901]
[1756825169664,247.24562305,204.75,204.72,0.14216157]
[1756825169959,247.24562305,204.75,204.7,4.88499141]
[1756825169960,8.02784329,204.73,204.7,4.88499141]
[1756825170168,48.66784329,204.72,204.69,18.48101119]
[1756825170468,39.94,204.71,204.69,18.48101119]
[1756825170638,39.94,204.71,204.7,0.14216157]
[1756825170958,39.94,204.71,204.7,5.02735942]
[1756825172149,198.57777976,204.75,204.72,0.14216157]
[1756825172357,39.94,204.74,204.72,0.28432314]
[1756825172564,40.64,204.74,204.72,0.14216157]
[1756825172754,48.66784329,204.74,204.72,0.14216157]
[1756825173058,8.72784329,204.73,204.71,4.88478554]
[1756825173259,40.64,204.72,204.71,5.02694711]
[1756825174153,48.66784329,204.72,204.65,0.75]
[1756825174358,8.02784329,204.69,204.66,18.48174665]
[1756825174543,39.94,204.68,204.66,18.48174665]
[1756825174744,8.72784329,204.71,204.68,4.8856752]
[1756825174951,39.94,204.7,204.68,4.8856752]
[1756825175151,39.94,204.69,204.68,5.02783677]
[1756825175355,0.7,204.71,204.69,0.14216157]
[1756825175550,198.57777976,204.75,204.7,8.02784329]
[1756825175755,39.94,204.74,204.72,0.14216157]
[1756825175952,198.57777976,204.75,204.72,0.28432314]
[1756825176161,39.94,204.74,204.72,0.28432314]
[1756825176842,39.94,204.74,204.73,18.62223758]
[1756825177647,198.57777976,204.75,204.74,0.14216157]
[1756825177848,246.54562305,204.75,204.74,0.14216157]
[1756825178144,246.54562305,204.75,204.72,4.88469756]
[1756825178344,39.92,204.74,204.73,13.73775558]
[1756825178978,198.57777976,204.75,204.73,18.62223758]
[1756825179147,198.57777976,204.75,204.73,18.76439915]
[1756825179342,39.92,204.74,204.73,18.76439915]
[1756825180376,40.59,204.74,204.73,5.02664357]
[1756825181073,40.59,204.74,204.72,4.88466964]
[1756825181074,48.61784329,204.74,204.72,4.88466964]
[1756825181248,0.67,204.74,204.73,0.14216157]
[1756825181452,39.92,204.74,204.73,0.14216157]
[1756825181647,198.57777976,204.75,204.73,0.14216157]
[1756825181957,39.92,204.74,204.73,0.14216157]
[1756825182164,40.59,204.74,204.73,0.14216157]
[1756825182546,48.61784329,204.74,204.71,80.1]
[1756825182846,8.02784329,204.72,204.71,80.1]
[1756825183041,39.92,204.72,204.71,84.98495921]
[1756825183441,39.92,204.72,204.7,4.91514299]
[1756825183442,48.61784329,204.72,204.7,4.91514299]
[1756825184369,198.57777976,204.75,204.71,0.14216157]
[1756825184370,8.02784329,204.73,204.71,0.14216157]
[1756825184562,39.92,204.72,204.71,13.87991715]
[1756825184966,39.92,204.72,204.71,18.76487636]
[1756825185272,198.57777976,204.75,204.72,0.14216157]
[1756825185474,39.92,204.74,204.73,13.73775558]
[1756825185772,198.57777976,204.75,204.74,0.14216157]
[1756825185773,238.49777976,204.75,204.74,0.14216157]
[1756825185966,238.49777976,204.75,204.74,8.31216643]
[1756825186277,198.57777976,204.75,204.74,80.38432314]
[1756825187153,198.57777976,204.75,204.74,93.99640986]
[1756825187488,198.57777976,204.75,204.74,85.26856657]
[1756825187868,198.57777976,204.75,204.74,106.89200387]
[1756825188072,198.57777976,204.75,204.74,107.59200387]
[1756825188275,198.57777976,204.75,204.74,98.86416058]
[1756825188699,198.57777976,204.75,204.74,133.59200387]
[1756825189185,198.57777976,204.75,204.74,124.86416058]
[1756825190481,198.57777976,204.75,204.74,119.83775558]
[1756825190653,198.57777976,204.75,204.74,39.73775558]
[1756825190849,198.57777976,204.75,204.74,125.56416058]
[1756825191055,198.57777976,204.75,204.74,107.59200387]
[1756825191263,172.69233678,204.75,204.74,107.59200387]
[1756825191470,147.50854728,204.75,204.74,107.59200387]
[1756825191956,121.81515861,204.75,204.74,107.59200387]
[1756825192976,0.06,204.78,204.77,26.14216157]
[1756825193172,0.06,204.78,204.77,102.70776044]
[1756825193478,0.06,204.78,204.77,13.87991715]
[1756825193653,39.96,204.78,204.77,13.87991715]
[1756825193860,40.63,204.78,204.77,13.73775558]
[1756825194265,40.63,204.78,204.77,13.87991715]
[1756825194465,40.63,204.78,204.77,13.73775558]
[1756825194952,40.63,204.78,204.73,18.47989462]
[1756825195156,8.69784329,204.77,204.73,18.47989462]
[1756825195461,40.57,204.76,204.74,0.14216157]
[1756825195673,40.57,204.76,204.73,18.47989462]
[1756825195970,8.02784329,204.74,204.72,4.88469391]
[1756825196214,40.57,204.73,204.72,18.62244949]
[1756825196357,40.57,204.73,204.72,18.48028792]
[1756825196792,0.67,204.73,204.71,26.0]
[1756825197094,0.67,204.72,204.71,44.48055322]
[1756825197258,33.09,204.72,204.71,44.48055322]
[1756825197468,33.01735043,204.72,204.7,0.03]
[1756825197668,40.44784329,204.72,204.7,0.03]
[1756825197900,39.9,204.71,204.7,0.03]
[1756825198180,8.02784329,204.73,204.7,0.03]
[1756825198373,39.9,204.72,204.7,0.03]
[1756825198571,39.9,204.71,204.7,0.03]
[1756825199178,47.92784329,204.71,204.7,0.03]
[1756825199574,48.59784329,204.71,204.7,0.03]
[1756825199773,8.69784329,204.71,204.7,0.03]
[1756825199995,48.59784329,204.71,204.7,0.03]
[1756825200193,40.57,204.71,204.7,0.03]
[1756825200400,53.4828025,204.71,204.7,0.03]
[1756825200792,79.4828025,204.71,204.7,0.03]
[1756825201494,39.5828025,204.71,204.7,0.03]
[1756825201698,79.4828025,204.71,204.7,0.03]
[1756825202103,26.67,204.71,204.7,0.03]
[1756825202308,39.9,204.71,204.7,0.03]
[1756825202494,0.06,204.75,204.7,8.05784329]
[1756825202495,8.75784329,204.75,204.7,8.05784329]
[1756825202693,8.02784329,204.73,204.7,0.03]
[1756825202925,8.02784329,204.72,204.7,0.03]
[1756825203102,39.9,204.71,204.7,0.03]
[1756825203301,0.67,204.74,204.7,0.03]
[1756825203501,0.06,204.75,204.72,13.73775558]
[1756825203789,39.9,204.74,204.72,13.73775558]
[1756825204000,8.69784329,204.73,204.7,0.03]
[1756825204295,8.02784329,204.72,204.7,0.03]
[1756825204495,0.67,204.73,204.7,0.03]
[1756825204496,39.9,204.71,204.7,0.03]
[1756825204697,40.57,204.71,204.7,0.03]
[1756825205110,39.9,204.71,204.7,0.03]
[1756825205302,40.57,204.71,204.7,0.03]
[1756825205503,39.9,204.71,204.7,0.03]
[1756825206906,39.9,204.72,204.71,13.87991715]
[1756825207109,39.9,204.72,204.71,22.60776044]
[1756825207290,0.06,204.75,204.71,22.60776044]
[1756825207511,39.9,204.73,204.71,0.28432314]
[1756825207815,39.9,204.73,204.71,13.87991715]
[1756825208010,0.06,204.75,204.71,13.87991715]
[1756825208219,39.9,204.74,204.72,12.91256388]
[1756825208427,0.06,204.75,204.72,12.91256388]
[1756825208742,39.9,204.74,204.73,21.76559887]
[1756825208908,39.9,204.74,204.73,13.73775558]
[1756825210255,39.9,204.74,204.73,0.14216157]
[1756825210439,0.06,204.75,204.74,0.14216157]
[1756825210635,0.06,204.75,204.74,21.90776044]
[1756825210858,0.06,204.75,204.74,13.87991715]
[1756825211650,0.06,204.75,204.74,21.90776044]
[1756825211963,0.06,204.75,204.74,22.61776044]
[1756825212147,0.06,204.75,204.74,13.73775558]
[1756825212454,8.79784329,204.75,204.72,13.73775558]
[1756825212662,8.08784329,204.75,204.72,13.73775558]
[1756825212958,39.9,204.74,204.72,13.73775558]
[1756825213559,0.06,204.75,204.74,13.73775558]
[1756825213755,0.06,204.75,204.74,89.12216643]
[1756825213943,0.06,204.75,204.74,102.71776044]